Cogmind - Beta 16.1 @@@ ROGUE MODE // 2026.03.14 @ 22:23:39 Player: kim.jet.wav Result: Self-destructed Performance ------------- Evolutions (2) 1000 Regions Visited (3) 600 Robots Destroyed (29) 145 Value Destroyed (710) 710 Prototype IDs (0) 0 Alien Tech Used (0) 0 Bonus (0) 0 TOTAL SCORE: 2455 Bonus ------- None Cogmind --------- Core Integrity 513/550 Matter 130/300 Energy 100/100 System Corruption 0% Temperature Cool (0) Movement Walking (175) Ox1 Location -8/Materials Parts ------- > --- POWER (2) -------- (None) > --- PROPULSION (3) --- Aluminum Leg Aluminum Leg > --- UTILITY (3) ------ Medium Storage Unit Seismic Detector Hacking Suite > --- WEAPON (3) ------- Medium Laser Mini Grenade Launcher > --- INVENTORY (10) --- Ion Engine Improved Sensor Array Target Analyzer Target Analyzer Beam Rifle Beam Cannon Datajack Peak State ------------ > --- POWER ------------ Ion Engine Light Nuclear Core > --- PROPULSION ------- Aluminum Leg Aluminum Leg Aluminum Leg > --- UTILITY ---------- Medium Storage Unit Seismic Detector Hacking Suite > --- WEAPON ----------- Medium Laser Beam Rifle Mini Grenade Launcher > --- INVENTORY -------- Ion Engine Improved Sensor Array Target Analyzer Target Analyzer Beam Cannon Grenade Launcher Datajack [Rating: 18] Favorites ----------- Power Ion Engine Engine Ion Engine Power Core Light Nuclear Core Propulsion Aluminum Leg Leg Aluminum Leg Utility Seismic Detector Device Seismic Detector Storage Medium Storage Unit Hackware Hacking Suite Weapon EM Pulse Gun Energy Gun EM Pulse Gun Energy Cannon Beam Cannon Launcher Mini Grenade Launcher Special Melee Weapon Datajack Build | -11 -10 -9 -8 ------- Run | Yrd Mat Mat Mat Slots Evolved 4 | . . 2 2 Power 1 | . . . 1 Propulsion 1 | . . . 1 Utility 1 | . . 1 . Weapon 1 | . . 1 . Parts Attached 19 | 7 2 7 3 Power 3 | 1 . 2 . Engine 2 | 1 . 1 . Core 1 | . . 1 . Reactor . | . . . . Propulsion 4 | 2 . 2 . Treads . | . . . . Leg 4 | 2 . 2 . Wheel . | . . . . Hover . | . . . . Flight . | . . . . Utility 4 | 2 1 1 . Device 1 | 1 . . . Storage 2 | 1 . 1 . Processor . | . . . . Hackware 1 | . 1 . . Protection . | . . . . Artifact . | . . . . Weapon 8 | 2 1 2 3 Energy Gun 4 | 2 . 1 1 Energy Cannon 1 | . . 1 . Ballistic Gun . | . . . . Ballistic Cannon . | . . . . Launcher 2 | . . . 2 Special Weapon . | . . . . Impact Weapon . | . . . . Slashing Weapon . | . . . . Piercing Weapon . | . . . . Special Melee Weapon 1 | . 1 . . Unidentified Prototypes . | . . . . Parts Lost 6 | . . 2 4 Power 2 | . . . 2 Propulsion 1 | . . . 1 Utility . | . . . . Weapon 3 | . . 2 1 Highest Loss Streak 4 | . . 1 4 To Critical Strikes . | . . . . Average Backups 5 | 1 4 6 6 Power 1 | . 1 1 1 Propulsion . | . . . . Utility . | . . . 2 Weapon 2 | . 2 3 2 Tool/Special . | . . . . Unused Backups 4 | . . . 4 Power 1 | . . . 1 Propulsion . | . . . . Utility 3 | . . . 3 Weapon . | . . . . Tool/Special . | . . . . Average Slot Usage (%) 98 | . 100 99 95 Engine 10 | . 14 9 7 Core 2 | . . 1 7 Leg 24 | . 28 22 26 Device 10 | . 10 11 9 Storage 11 | . 14 11 9 Hackware 8 | . 3 11 9 Energy Gun 14 | . 24 10 11 Energy Cannon 7 | . . 10 7 Special Melee Weapon 7 | . 3 11 4 Peak Build Rating 18 | 7 9 14 18 Average Rating 10 | 5 7 11 15 On Entrance 7 | . 7 9 14 Avg Prop Armor Cover (%) 8 | 10 . . 6 Naked Turns . | . . . . Heaviest Build 29 | 15 15 22 29 Greatest Support 30 | 20 20 20 30 Greatest Overweight (x) 4 | 4 . 1 1 Average Overweight (x) . | 1 . . . Largest Inventory Capacity 10 | 8 8 10 10 Average Capacity 9 | 7 8 9 10 Most Carried 10 | 2 6 10 7 Average Carried 5 | 1 4 6 6 Final Capacity 10 | 8 8 10 10 Final Carried 8 | 2 6 8 7 Class Distribution -------------------- 73% | Mutant 18% | Scavenger-Mutant 8% | Scavenger-Gunner Dominant Class ---------------- Mutant | -10/Materials Mutant | -9/Materials Scavenger-Mutant | -8/Materials Resources | -11 -10 -9 -8 ----------- Run | Yrd Mat Mat Mat Matter Collected 375 | 270 . 105 . Remotely . | . . . . Salvage Created 814 | 23 93 502 196 Parts 64 | 5 9 31 19 Haulers Intercepted . | . . . . Recyclers Shooed 1 | . . 1 . Parts Field Recycled . | . . . . Retrieved Matter . | . . . . Parts Self-Destructed . | . . . . Prevented . | . . . . Parts Restored . | . . . . Kills | -11 -10 -9 -8 ------- Run | Yrd Mat Mat Mat Combat Hostiles Destroyed 19 | . 1 10 8 Guns 6 | . . 5 1 Cannons 5 | . . 5 . AOE 8 | . 1 . 7 Classes Destroyed 10 | 1 4 4 1 Worker 1 | . . . 1 Builder 4 | . . 1 3 Tunneler 1 | 1 . . . Recycler 1 | . . 1 . Mechanic 1 | . 1 . . Operator 1 | . 1 . . Watcher 1 | . 1 . . Swarmer 7 | . . 3 4 Grunt 10 | . 1 5 4 Sentry 2 | . . 2 . Best Kill Streak 7 | 1 3 4 7 Combat Bots Only 4 | . 1 4 4 Max Kills in Single Turn 5 | 1 1 1 5 Gunslinging . | . . . . Exploded 4 | . 1 . 4 Melee . | . . . . Uniques/NPCs Destroyed . | . . . . Combat | -11 -10 -9 -8 -------- Run | Yrd Mat Mat Mat Hostile Shots Fired 88 | . 6 57 25 Missed 31 | . 3 18 10 Hits 57 | . 3 39 15 Projectile 57 | . 3 39 15 Critical Strikes 2 | . . 1 1 Damage Taken 737 | . 26 444 267 Core 117 | . 10 70 37 Absorbed by Shields . | . . . . Core Remaining (%) 92 | 100 96 82 . Volleys Fired 66 | 1 16 30 19 Largest 3 | 2 2 2 3 Hottest 166 | 90 90 110 166 Shots Fired 116 | 2 29 52 33 Gun 75 | 2 29 29 15 Cannon 29 | . . 23 6 Launcher 12 | . . . 12 Special . | . . . . Kinetic . | . . . . Thermal 60 | 1 13 25 21 Explosive 12 | . . . 12 Electromagnetic 44 | 1 16 27 . Robot Hit Streak 14 | 1 2 14 5 Robot Miss Streak 3 | 1 3 2 2 Penetration Max . | . . . . Secondary Targets . | . . . . Shots Hit Robots 73 | 1 6 45 21 Core Hits 37 | 1 3 18 15 Critical Kills . | . . . . Critical Parts Destroyed . | . . . . Critical Strikes 1 | . . 1 . Burn 1 | . . 1 . Melee Attacks 16 | . 1 14 1 Impact . | . . . . Slashing . | . . . . Piercing . | . . . . Sneak Attacks 7 | . 1 5 1 Combat Hostiles . | . . . . Follow-up Attacks . | . . . . Damage Inflicted 1788 | 12 186 592 998 Guns 506 | 12 80 293 121 Cannons 301 | . . 248 53 Explosions 981 | . 106 51 824 Melee . | . . . . Ramming . | . . . . Kinetic . | . . . . Thermal 652 | 12 143 323 174 Explosive 824 | . . . 824 Electromagnetic 312 | . 43 269 . Impact . | . . . . Slashing . | . . . . Piercing . | . . . . Highest Corruption . | . . . . Average Corruption . | . . . . Corruption Purged . | . . . . Corruption Blocked . | . . . . Overload Shots . | . . . . Overflow Damage 88 | . 27 . 61 Projectiles 14 | . . . 14 Explosions 74 | . 27 . 47 Melee . | . . . . Knockbacks . | . . . . Impact . | . . . . Kinetic . | . . . . Secondary . | . . . . Self-Inflicted Damage 3 | . . . 3 Shots 1 | . . . 1 Rammed . | . . . . Targets Rammed . | . . . . Kicked . | . . . . Crushed . | . . . . Highest Temperature 486 | 30 240 307 486 Average Temperature 137 | 17 86 107 244 Received Heat Transfer 312 | . . 159 153 Effects 8 | . 1 1 6 Shutdowns 2 | . . . 2 Energy Bleed 2 | . 1 1 . Short Circuit 3 | . . . 3 Damage (minor) 1 | . . . 1 Siege Activations . | . . . . Martial Activations . | . . . . Shielding Activations . | . . . . Robots Disrupted . | . . . . Combat Hostiles . | . . . . Robots Corrupted . | . . . . Combat Hostiles . | . . . . Parts Fried . | . . . . Impact Corruptions . | . . . . Robots Melted . | . . . . Combat Hostiles . | . . . . Parts Melted 2 | . . 1 1 Heat Transferred 1358 | 37 161 716 444 Parts Sabotaged . | . . . . Parts Stolen . | . . . . Parts Stripped . | . . . . Power Chain Reactions 2 | . 1 1 . Alert | -11 -10 -9 -8 ------- Run | Yrd Mat Mat Mat Maximum Alert Level . | . . . . Low Security (%) 100 | 100 100 100 100 Level 1 . | . . . . Level 2 . | . . . . Level 3 . | . . . . Level 4 . | . . . . Level 5 . | . . . . High Security . | . . . . Max Security . | . . . . Peak Influence 159 | 5 69 104 159 Initial 35 | . . . 35 Average 32 | . 19 37 52 Influence Increases 659 | 5 86 299 269 Destroy 0b10 Robot/C 380 | . 20 200 160 Destroy 0b10 Robot/NC 50 | 5 15 10 20 Destroy Leader 92 | . 12 60 20 Trap Triggered on 0b10 10 | . . 10 . Disable Machine 75 | . 30 15 30 Destroy Structure 52 | . 9 4 39 Influence Decreases 500 | 5 86 213 196 Entered New Map 51 | . . . 51 Time Decay 399 | 5 86 203 105 Lost Part 50 | . . 10 40 Squads Dispatched 4 | . 2 1 1 Investigation . | . . . . Extermination . | . . . . Reinforcement 4 | . 2 1 1 Assault . | . . . . Garrison . | . . . . Intercept . | . . . . Searches Triggered . | . . . . Construction Impeded 2 | . . 1 1 Haulers Reinforced . | . . . . Active Scanning Responses . | . . . . Cargo Convoy Interrupts . | . . . . Stealth | -11 -10 -9 -8 --------- Run | Yrd Mat Mat Mat Distress Signals 3 | . 1 1 1 Communications Jammed . | . . . . Distress Signals . | . . . . Times Spotted 35 | . 10 16 9 Peak Tracking Total 4 | . 4 4 4 Tactical Retreats . | . . . . Traps | -11 -10 -9 -8 ------- Run | Yrd Mat Mat Mat Traps Triggered . | . . . . Indirectly . | . . . . Trap Hack Attempts . | . . . . Triggered . | . . . . Disarmed . | . . . . Reprogrammed 3 | . . 3 . Reused 1 | . . 1 . Traps Extracted . | . . . . Installed . | . . . . Triggered 1 | . . 1 . Machines | -11 -10 -9 -8 ---------- Run | Yrd Mat Mat Mat Machines Disabled 5 | . 2 1 2 Max in Single Turn 2 | . 2 1 1 Machines Repaired . | . . . . Machines Dismantled . | . . . . Machines Sabotaged . | . . . . Overloaded Fab Kills . | . . . . Hacking | -11 -10 -9 -8 --------- Run | Yrd Mat Mat Mat Machines Accessed 5 | . 2 3 . Terminals 3 | . 1 2 . Fabricators . | . . . . Repair Stations . | . . . . Recycling Units 1 | . 1 . . Scanalyzers 1 | . . 1 . Garrison Access . | . . . . Total Hacks 17 | . 5 12 . Successful 13 | . 3 10 . Failed 3 | . 2 1 . Catastrophic . | . . . . Database Lockouts 1 | . . 1 . Manual 1 | . . 1 . Terminals 7 | . 2 5 . Fabricators . | . . . . Repair Stations . | . . . . Recycling Units 3 | . 3 . . Scanalyzers 7 | . . 7 . Garrison Access . | . . . . Terminal Hacks 5 | . 2 3 . Emergency Access Points 1 | . . 1 . Alert Level 1 | . 1 . . Locate Traps 1 | . . 1 . Reprogram Traps 1 | . . 1 . Maintenance Status 1 | . 1 . . Fabricator Hacks . | . . . . Repair Station Hacks . | . . . . Recycling Unit Hacks 1 | . 1 . . Report Inventory 1 | . 1 . . Scanalyzer 6 | . . 6 . Retrieve Study 6 | . . 6 . Garrison Access Hacks . | . . . . Unauthorized Hacks 1 | . . 1 . Terminals 1 | . . 1 . Assimilate 1 | . . 1 . Fabricators . | . . . . Repair Stations . | . . . . Recycling Units . | . . . . Scanalyzers . | . . . . Garrison Access . | . . . . Data Cores Recovered . | . . . . Used . | . . . . Hacking Detections 1 | . 1 . . Full Trace Events . | . . . . Feedback Events . | . . . . Feedback Blocked . | . . . . Robot Schematics Acquired . | . . . . Robots Built . | . . . . Authchips . | . . . . Time . | . . . . Total Robot Build Rating . | . . . . Part Schematics Acquired . | . . . . Parts Built . | . . . . Authchips . | . . . . Time . | . . . . Total Part Build Rating . | . . . . Part Studies Acquired 5 | . . 5 . Parts Repaired . | . . . . Time . | . . . . Parts Recycled . | . . . . Recycled Matter . | . . . . Retrieved Matter . | . . . . Retrieved Components . | . . . . Parts Scanalyzed . | . . . . Part Schematics Acquired . | . . . . Parts Damaged . | . . . . Bothacking | -11 -10 -9 -8 ------------ Run | Yrd Mat Mat Mat Used RIF Installer . | . . . . Robots Hacked 7 | . 1 5 1 Non-combat 7 | . 1 5 1 Combat . | . . . . Robot Hacks Applied 9 | . 1 7 1 parse_system 3 | . . 3 . no_distress 4 | . . 3 1 find_recycling 2 | . 1 1 . Relay Couplers Released . | . . . . Fabnet Peak Effective % . | . . . . Robots Rewired . | . . . . Allies Hacked . | . . . . Hacks Repelled . | . . . . Allies | -11 -10 -9 -8 -------- Run | Yrd Mat Mat Mat Total Allies . | . . . . Largest Group . | . . . . Highest-Rated Group . | . . . . Highest-Rated Ally . | . . . . Total Orders . | . . . . Ally Attacks . | . . . . Total Damage . | . . . . Kills . | . . . . Allies Corrupted . | . . . . Allies Melted . | . . . . Intel | -11 -10 -9 -8 ------- Run | Yrd Mat Mat Mat Active Infowar (turns) 1185 | 76 254 608 247 Seismic 1185 | 76 254 608 247 Robot Analysis Total . | . . . . Derelict Logs Recovered . | . . . . Drone Launches . | . . . . Drone Recoveries . | . . . . Exploration | -11 -10 -9 -8 ------------- Run | Yrd Mat Mat Mat Turns Passed 1312 | 110 346 609 247 Spaces Moved 676 | 56 238 256 126 Core 24 | 24 . . . Treads . | . . . . Legs 652 | 32 238 256 126 Wheels . | . . . . Hover . | . . . . Flight . | . . . . Fastest Speed 50 | 50 120 120 105 Average Speed 145 | 145 120 187 109 Slowest Speed 250 | 250 120 190 175 Overloaded Moves . | . . . . Propulsion Burnouts . | . . . . Robots Hopped . | . . . . Potential Cave-ins . | . . . . Cave-ins Triggered . | . . . . Exploration Rate (%) 19 | 4 39 24 12 Regions Visited 3 Branch Regions . Pre-discovered Areas . | . . . . Known Exits Taken . | . . . . Unknown Exits Taken 3 | 1 1 1 . Scrap Searched . | . . . . Spaces Dug . | . . . . Terrain Destroyed 58 | . 9 3 46 Melee . | . . . . Projectile . | . . . . AOE 58 | . 9 3 46 Terrain Rammed . | . . . . Walls Destroyed . | . . . . Machines Disabled . | . . . . Actions | -11 -10 -9 -8 --------- Run | Yrd Mat Mat Mat Total 875 | 79 268 325 203 Wait 80 | 14 8 9 49 Move 673 | 55 237 255 126 Hop . | . . . . Pick Up 11 | 2 4 4 1 Fast Attach 8 | 7 . 1 . Attach 6 | . . 4 2 Detach 1 | . . 1 . Swap 11 | . 2 4 5 Drop 3 | . . 3 . Fire 66 | 1 16 30 19 Melee 16 | . 1 14 1 Ram . | . . . . Kick . | . . . . Crush . | . . . . Escape Stasis . | . . . . Rewire . | . . . . Trap . | . . . . Miscellaneous . | . . . . Route ------- -11/Scrapyard -10/Materials (discovered 3 exits: *Mat x2 / [*Min]) -9/Materials -8/Materials History --------- Turn | Location | Event 48 | -11/Scrapyard | Discovered new exit (range 15) 111 | -11/Scrapyard | Entered Materials 302 | -10/Materials | Build established: Mutant 309 | -10/Materials | Discovered new exit (range 11) 341 | -10/Materials | Discovered new exit (range 16) 442 | -10/Materials | Discovered new exit (range 9) 457 | -10/Materials | Entered another Materials area 457 | -9/Materials | Evolved 2 slots: Utility x1, Weapon x1 893 | -9/Materials | Discovered new exit (range 16) 1059 | -9/Materials | Central database locked down 1066 | -9/Materials | Entered another Materials area 1066 | -8/Materials | Evolved 2 slots: Power x1, Propulsion x1 1313 | -8/Materials | Self-destructed Last Messages --------------- 01287_ K-01 Serf collects debris. 01288_ G-47 Trooper destroyed. 01288_ U-05 Engineer destroyed. 01288_ Broken Ion Engine destroyed. 01292_ U-05 Engineer lays Concrete. 01295_ The unstable cave ceiling collapses. 01295_ U-05 Engineer lays Concrete. 01296_ U-05 Engineer builds a Door. 01298_ U-05 Engineer lays Concrete. 01298_ Aluminum Leg+ destroyed. 01299_ U-05 Engineer lays Concrete. 01300_ Destroyed Adv. Heat Sink. 01300_ G-50 Soldier destroyed. 01300_ U-05 Engineer lays Concrete. 01302_ Destroyed Lgt. Ion Engine. 01302_ U-05 Engineer lays Concrete. 01304_ The unstable cave ceiling collapses. 01304_ U-05 Engineer destroyed. 01306_ The unstable cave ceiling collapses. 01311_ Terminal disabled. Map ----- +----------------------------------------------------+ | ?????????????????????????????????????????????????? | | ?????????????????????????????????????????????????? | | ?????????????????????????????????????????????????? | | ?????????????????????????????????????????????????? | | ?????????????????????????????????????????????????? | | ?????????????????????????????????????????????????? | | ?????????????????????????????????????????????????? | | ?????????????????????????????????????????????????? | | ?????????????????????????????????????????????????? | | ?????????????????????????????????????????????????? | | ???????????????????????w ?????????????????????? | | ????????????????????? ????????????????????? | | ???????????????????? ##???????????????????? | | ????????????????????" ???????????????????? | | ????????????????????? #???????????????????? | | ????????????????????? ###?????????????????? | | ????????????????????? ###???????????????? | | ?????????????????????? ###?????????????? | | ?????????????????????? ??????????????? | | ?????????????????????##% #???????????????? | | ?????????????????????# #???????????????? | | ?????????????????????? # #???????????????? | | ??????????????????????# ##???????????????? | | ??????????????????????# # #???????????????? | | ??????????????????????# ####????????????? | | ??????????????????????# @ !#????????????? | | ??????????????????????# [% #????????????? | | ??????????????????????# [ # #????????????? | | ??????????????######### #??? #????????????? | | ??????????????# ### #??????????????????? | | ??????????????# % ""???????????????? | | ??????????????# """??????????????? | | ??????????????# % #????????????? | | ??????????????# ###### # # "" #????????????? | | ??????????????## ### # """#????????????? | | ???????????????# #? #? S??????????????? | | ???????????????# #?# !! #?? ?????????????? | | ???????????????# #?#! !! #??####????????????? | | ???????????????# #?# ! #??????????????????? | | ???????????????# #?# """ #??????????????????? | | ???????????????# #?# """ #??????????????????? | | ???????????????# #?? "?? #??????????????????? | | ???????????????# #?? ??????????????????????? | | ???????????????# #??#+###?#+#??????????????????? | | ???????????????# #??# #???# #??????????????????? | | ???????????????# #??# #???# #??????????????????? | | ???????????????# #??# #???# #??????????????????? | | ???????????????# #### ###?# #??????????????????? | | ???????????????# ## ### ##?????????????????? | | ???????????????# #?????????????????? | +----------------------------------------------------+ Best States ------------- Heat Dissipation 31 Energy Generation 19 Energy Capacity 310 Matter Stores 300 Matter Capacity 300 Sight Range 16 Terrain Scan Density 10 Evasion (%) 55 Offensive Hacking 10 Item Schematics ----------------- None Robot Schematics ------------------ None Fabricated ------------ Nothing Repaired ---------- Nothing Studied --------- Aluminum Leg | -9/Materials | Hacked Datajack | -9/Materials | Hacked Beam Rifle | -9/Materials | Hacked Med. Laser | -9/Materials | Hacked Mni. Grenade Launcher | -9/Materials | Hacked Alien Tech Used ----------------- None Achievements -------------- Junior Dev Challenges ------------ None Game ------ Seed WeightArcsightExoskeleton Manual? 0 Play Time 00:28:07 Cumulative 60.5 hours Start 2026.03.13 @ 22:49:24 End 2026.03.14 @ 22:23:39 Sessions 3 Manual Loads 0 Difficulty Rogue Special Mode None Game No. 232 Rogue 232 Adventurer 0 Explorer 0 Win Type - Total 0 Types 0/0/0/0/0/0/0/0/0/0 Lore% 28 Gallery% 22 Achievement% 17 Wizard Run 0 Options --------- Layout 0 ASCII 1 Keyboard 1 Movement Numpad Keybinds 1 Fullscreen 1 Font 18/X11 Map View 76x50 Zoom Use 0% Tactical HUD 1 Map Filters NONE Filters NONE Steam 1 RUN: ddf0169b-5b1a-4732-b94f-3a58ce2d5c1c